fUST/lending_fUST_20251001
["ID","MTS","AMOUNT","RATE_DAILY","PERIOD"]
[388700723,1759321857687,-169.916042,0.00021918,2]
[388700724,1759321857696,-169.916042,0.00021918,2]
[388700725,1759321857706,-169.916042,0.00021918,2]
[388700726,1759321857715,-169.916042,0.00021918,2]
[388700727,1759321857724,-169.916042,0.00021918,2]
[388700728,1759321857733,-169.916032,0.00021918,2]
[388700729,1759321857742,-150.0,0.00021918,2]
[388700730,1759321857751,-400.0,0.00021918,2]
[388700731,1759321857760,-333.46476554,0.00021921,7]
[388700732,1759321857769,-250.0,0.0002194,2]
[388700733,1759321857778,-600.0,0.00021968,2]
[388700734,1759321857788,-175.057,0.0002197,2]
[388700735,1759321857796,-253.0,0.00021995,2]
[388700736,1759321857806,-151.0,0.00022,3]
[388700737,1759321857815,-10965.18,0.00022,2]
[388700738,1759321857824,-253.0,0.00022009,2]
[388700739,1759321857838,-500.0,0.00022043,5]
[388700740,1759321857847,-242.0,0.00022046,2]
[388700741,1759321857858,-3000.0,0.00022086,2]
[388700742,1759321857867,-2010.99996831,0.000221,3]
[388700743,1759321857879,-253.0,0.00022112,2]
[388700744,1759321857888,-242.0,0.00022163,2]
[388700745,1759321857897,-151.942474,0.00022178,3]
[388700746,1759321857906,-920.0,0.00022189,2]
[388700747,1759321857915,-600.0,0.0002219,2]
[388700748,1759321857925,-575.41,0.00022191,2]
[388700749,1759321858045,-732.69,0.00022191,2]
[388700750,1759321858055,-502.46,0.00022191,2]
[388700751,1759321858065,-500.0,0.00022191,2]
[388700752,1759321858074,-500.0,0.00022191,2]
[388700753,1759321858083,-500.0,0.00022191,2]
[388700754,1759321858092,-540.44,0.00022191,2]
[388700755,1759321858102,-1093.76,0.00022191,2]
[388700756,1759321858111,-500.0,0.00022191,2]
[388700757,1759321858121,-653.65,0.00022191,2]
[388700758,1759321858130,-500.0,0.00022191,2]
[388700759,1759321858140,-500.0,0.00022191,2]
[388700760,1759321858149,-775.98,0.00022191,2]
[388700761,1759321858159,-500.0,0.00022191,2]
[388700762,1759321858168,-726.09,0.00022191,2]
[388700763,1759321858177,-580.53,0.00022191,2]
[388700764,1759321858187,-500.0,0.00022191,2]
[388700765,1759321858197,-769.46,0.00022191,2]
[388700766,1759321858209,-1943.96,0.00022191,2]
[388700767,1759321858218,-500.0,0.00022191,2]
[388700768,1759321858228,-612.02,0.00022191,2]
[388700769,1759321858237,-969.0,0.00022191,2]
[388700770,1759321858247,-763.2,0.00022191,2]
[388700771,1759321858256,-662.1,0.00022191,2]
[388700772,1759321858265,-500.0,0.00022191,2]
[388700773,1759321858275,-1161.75,0.00022191,2]
[388700774,1759321858284,-1820.64,0.00022191,2]
[388700775,1759321858294,-711.47,0.00022191,2]
[388700776,1759321858304,-688.73,0.00022191,2]
[388700777,1759321858314,-1119.87,0.00022191,2]
[388700778,1759321858325,-695.1,0.00022191,2]
[388700779,1759321858335,-557.33,0.00022191,2]
[388700780,1759321858345,-2140.28,0.00022191,2]
[388700781,1759321858354,-914.94,0.00022191,2]
[388700782,1759321858363,-716.76,0.00022191,2]
[388700783,1759321858372,-500.0,0.00022191,2]
[388700784,1759321858382,-500.0,0.00022191,2]
[388700785,1759321858391,-1047.55,0.00022191,2]
[388700786,1759321858401,-2079.09,0.00022191,2]
[388700787,1759321858410,-816.71,0.00022191,2]
[388700788,1759321858419,-1092.96,0.00022191,2]
[388700789,1759321858428,-500.0,0.00022191,2]
[388700790,1759321858438,-758.83,0.00022191,2]
[388700791,1759321858448,-583.79,0.00022191,2]
[388700792,1759321858458,-636.07,0.00022191,2]
[388700793,1759321858467,-500.0,0.00022191,2]
[388700794,1759321858477,-500.0,0.00022191,2]
[388700795,1759321858486,-500.0,0.00022191,2]
[388700796,1759321858497,-2835.74,0.00022191,2]
[388700797,1759321858507,-597.08,0.00022191,2]
[388700798,1759321858517,-500.0,0.00022191,2]
[388700799,1759321858527,-604.04,0.00022191,2]
[388700800,1759321858536,-500.0,0.00022191,2]
[388700801,1759321858546,-1919.86,0.00022191,2]
[388700802,1759321858555,-813.89,0.00022191,2]
[388700803,1759321858564,-520.36,0.00022191,2]
[388700804,1759321858573,-594.37,0.00022191,2]
[388700805,1759321858583,-500.0,0.00022191,2]
[388700806,1759321858593,-2845.23,0.00022191,2]
[388700807,1759321858602,-3053.05,0.00022191,2]
[388700808,1759321858612,-735.28,0.00022191,2]
[388700809,1759321858621,-500.0,0.00022191,2]
[388700810,1759321858630,-671.94,0.00022191,2]
[388700811,1759321858639,-1314.73,0.00022191,2]
[388700812,1759321858649,-599.23,0.00022191,2]
[388700813,1759321858658,-666.86,0.00022191,2]
[388700814,1759321858667,-2778.08,0.00022191,2]
[388700815,1759321858676,-705.59,0.00022191,2]
[388700816,1759321858685,-500.0,0.00022191,2]
[388700817,1759321858695,-741.42,0.00022191,2]
[388700818,1759321858704,-845.2,0.00022191,2]
[388700819,1759321858713,-1126.69,0.00022191,2]
[388700820,1759321858723,-3581.98,0.00022191,2]
[388700821,1759321858733,-1516.75,0.00022191,2]
[388700822,1759321858743,-733.07,0.00022191,2]
[388700823,1759321858755,-9167.63,0.00022191,2]
[388700824,1759321858770,-500.0,0.00022191,2]
[388700825,1759321858779,-541.2,0.00022191,2]
[388700826,1759321858790,-1344.06,0.00022191,2]
[388700827,1759321858799,-721.24,0.00022191,2]
[388700828,1759321858809,-1030.61,0.00022191,2]
[388700829,1759321858818,-1694.29,0.00022191,2]
[388700830,1759321858827,-1091.43,0.00022191,2]
[388700831,1759321858843,-1144.06,0.00022191,2]
[388700832,1759321858852,-1335.93,0.00022191,2]
[388700833,1759321858863,-1839.37,0.00022191,2]
[388700834,1759321858872,-563.21256409,0.00022191,2]
[388700835,1759321858883,-1459.47,0.00022191,2]
[388700836,1759321858893,-836.98,0.00022191,2]
[388700837,1759321858902,-2105.57,0.00022191,2]
[388700838,1759321858911,-638.95,0.00022191,2]
[388700839,1759321858920,-1315.4,0.00022191,2]
[388700840,1759321858930,-878.29,0.00022191,2]
[388700841,1759321858939,-1595.24,0.00022191,2]
[388700842,1759321858948,-1473.32,0.00022191,2]
[388700843,1759321858957,-1324.01,0.00022191,2]
[388700844,1759321858966,-1220.82,0.00022191,2]
[388700845,1759321858975,-912.25,0.00022191,2]
[388700846,1759321858985,-500.0,0.00022191,2]
[388700847,1759321858994,-500.0,0.00022191,2]
[388700848,1759321859004,-500.0,0.00022191,2]
[388700849,1759321859013,-999.89,0.00022191,2]
[388700850,1759321859023,-1163.38,0.00022191,2]
[388700851,1759321859033,-500.0,0.00022191,2]
[388700852,1759321859042,-500.0,0.00022191,2]
[388700853,1759321859052,-2709.32,0.00022191,2]
[388700854,1759321859061,-1580.81,0.00022191,2]
[388700855,1759321859070,-500.0,0.00022191,2]
[388700856,1759321859079,-577.98,0.00022191,2]
[388700857,1759321859089,-1438.98,0.00022191,2]
[388700858,1759321859098,-3424.63,0.00022191,2]
[388700859,1759321859107,-1244.25,0.00022191,2]
[388700860,1759321859117,-1550.16,0.00022191,2]
[388700861,1759321859126,-500.0,0.00022191,2]
[388700862,1759321859136,-862.91,0.00022191,2]
[388700863,1759321859146,-1140.21,0.00022191,2]
[388700864,1759321859155,-1371.74,0.00022191,2]
[388700865,1759321859164,-872.96,0.00022191,2]
[388700866,1759321859174,-4231.65,0.00022191,2]
[388700867,1759321859183,-645.5,0.00022191,2]
[388700868,1759321859192,-500.0,0.00022191,2]
[388700869,1759321859201,-1232.6,0.00022191,2]
[388700870,1759321859211,-500.0,0.00022191,2]
[388700871,1759321859220,-1223.3,0.00022191,2]
[388700872,1759321859229,-590.09,0.00022191,2]
[388700873,1759321859238,-1447.95,0.00022191,2]
[388700874,1759321859248,-798.59,0.00022191,2]
[388700875,1759321859257,-1782.85,0.00022191,2]
[388700876,1759321859267,-1838.64,0.00022191,2]
[388700877,1759321859276,-1516.56,0.00022191,2]
[388700878,1759321859285,-893.08,0.00022191,2]
[388700879,1759321859294,-630.1,0.00022191,2]
[388700880,1759321859304,-609.29,0.00022191,2]
[388700881,1759321859314,-2743.35,0.00022191,2]
[388700882,1759321859324,-1057.58,0.00022191,2]
[388700883,1759321859332,-2029.61,0.00022191,2]
[388700884,1759321859342,-1681.29,0.00022191,2]
[388700885,1759321859351,-1605.61,0.00022191,2]
[388700886,1759321859361,-500.0,0.00022191,2]
[388700887,1759321859370,-1745.65,0.00022191,2]
[388700888,1759321859379,-500.0,0.00022192,5]
[388700889,1759321859388,-253.0,0.00022193,2]
[388700890,1759321859397,-151.0,0.000222,5]
[388700891,1759321859406,-243.0,0.00022208,2]
[388700892,1759321859416,-3000.0,0.00022212,2]
[388700893,1759321859425,-3000.0,0.00022212,2]
[388700894,1759321859435,-3000.0,0.00022212,2]
[388700895,1759321859444,-3050.24432547,0.00022212,2]
[388700896,1759321859454,-160.0,0.00022213,2]
[388700897,1759321859463,-160.0,0.00022213,2]
[388700898,1759321859472,-160.0,0.00022213,2]
[388700899,1759321859482,-160.0,0.00022213,2]
[388700900,1759321859491,-160.0,0.00022214,2]
[388700901,1759321859500,-151.942474,0.00022226,2]
[388700902,1759321859509,-5147.0725877,0.00022264,2]
[388700903,1759321859519,-253.0,0.00022271,2]
[388700904,1759321859528,-4658.24996534,0.00022288,2]
[388700905,1759321859538,-253.0,0.00022299,2]
[388700906,1759321859547,-500.0,0.00022317,5]
[388700907,1759321859557,-460.0,0.00022371,2]
[388700908,1759321859568,-925.79557311,0.00022412,2]
[388700909,1759321859585,-3500.0,0.0002246,2]
[388700910,1759321859595,-3500.0,0.0002246,2]
[388700911,1759321859604,-3500.0,0.0002246,2]
[388700912,1759321859613,-3500.0,0.0002246,2]
[388700913,1759321859622,-920.0,0.00022463,2]
[388700914,1759321859631,-1326.54,0.00022463,2]
[388700915,1759321859641,-575.41,0.00022465,2]
[388700916,1759321859650,-732.69,0.00022465,2]
[388700917,1759321859660,-502.46,0.00022465,2]
[388700918,1759321859669,-500.0,0.00022465,2]
[388700919,1759321859678,-500.0,0.00022465,2]
[388700920,1759321859687,-500.0,0.00022465,2]
[388700921,1759321859697,-540.44,0.00022465,2]
[388700922,1759321859706,-1093.76,0.00022465,2]
[388700923,1759321859715,-500.0,0.00022465,2]
[388700924,1759321859724,-653.65,0.00022465,2]
[388700925,1759321859734,-500.0,0.00022465,2]
[388700926,1759321859743,-500.0,0.00022465,2]
[388700927,1759321859752,-775.98,0.00022465,2]
[388700928,1759321859762,-500.0,0.00022465,2]
[388700929,1759321859771,-726.09,0.00022465,2]
[388700930,1759321859781,-580.53,0.00022465,2]
[388700931,1759321859792,-500.0,0.00022465,2]
[388700932,1759321859801,-769.46,0.00022465,2]
[388700933,1759321859810,-1943.96,0.00022465,2]
[388700934,1759321859819,-500.0,0.00022465,2]
[388700935,1759321859829,-612.02,0.00022465,2]
[388700936,1759321859843,-969.0,0.00022465,2]
[388700937,1759321859853,-763.2,0.00022465,2]
[388700938,1759321859863,-662.1,0.00022465,2]
[388700939,1759321859876,-500.0,0.00022465,2]
[388700940,1759321859887,-1161.75,0.00022465,2]
[388700941,1759321859897,-1820.64,0.00022465,2]
[388700942,1759321859906,-711.47,0.00022465,2]
[388700943,1759321859918,-688.73,0.00022465,2]
[388700944,1759321859928,-1119.87,0.00022465,2]
[388700945,1759321859938,-695.1,0.00022465,2]
[388700946,1759321859947,-557.33,0.00022465,2]
[388700947,1759321859957,-2140.28,0.00022465,2]
[388700948,1759321859966,-914.94,0.00022465,2]
[388700949,1759321859975,-716.76,0.00022465,2]
[388700950,1759321859984,-500.0,0.00022465,2]
[388700951,1759321859994,-500.0,0.00022465,2]
[388700952,1759321860003,-1047.55,0.00022465,2]
[388700953,1759321860012,-2079.09,0.00022465,2]
[388700954,1759321860022,-816.71,0.00022465,2]
[388700955,1759321860032,-1092.96,0.00022465,2]
[388700956,1759321860042,-423.632951,0.00022465,2]
[388700957,1759321860051,-758.83,0.00022465,2]
[388700958,1759321860060,-583.79,0.00022465,2]
[388700959,1759321860070,-636.07,0.00022465,2]
[388700960,1759321860080,-500.0,0.00022465,2]
[388700961,1759321860090,-500.0,0.00022465,2]
[388700962,1759321860099,-500.0,0.00022465,2]
[388700963,1759321860109,-2835.74,0.00022465,2]
[388700964,1759321860119,-597.08,0.00022465,2]
[388700965,1759321860128,-500.0,0.00022465,2]
[388700966,1759321860139,-604.04,0.00022465,2]
[388700967,1759321860149,-609.13250127,0.00022465,2]
[388700968,1759321860159,-1919.86,0.00022465,2]
[388700969,1759321860168,-813.89,0.00022465,2]
[388700970,1759321860177,-520.36,0.00022465,2]
[388700971,1759321860187,-594.37,0.00022465,2]
[388700972,1759321860195,-344.52475542,0.00022465,2]
[388700973,1759321860205,-2845.23,0.00022465,2]
[388700974,1759321860215,-735.28,0.00022465,2]
[388700975,1759321860224,-3053.05,0.00022465,2]
[388700976,1759321860233,-528.58558935,0.00022465,2]
[388700977,1759321860242,-671.94,0.00022465,2]
[388700978,1759321860253,-1314.73,0.00022465,2]
[388700979,1759321860262,-666.86,0.00022465,2]
[388700980,1759321860271,-599.23,0.00022465,2]
[388700981,1759321860280,-2778.08,0.00022465,2]
[388700982,1759321860290,-705.59,0.00022465,2]
[388700983,1759321860300,-500.0,0.00022465,2]
[388700984,1759321860310,-741.42,0.00022465,2]
[388700985,1759321860320,-845.2,0.00022465,2]
[388700986,1759321860330,-1126.69,0.00022465,2]
[388700987,1759321860340,-3581.98,0.00022465,2]
[388700988,1759321860349,-1516.75,0.00022465,2]
[388700989,1759321860358,-733.07,0.00022465,2]
[388700990,1759321860367,-9167.63,0.00022465,2]
[388700991,1759321860376,-500.0,0.00022465,2]
[388700992,1759321860494,-541.2,0.00022465,2]
[388700993,1759321860504,-1344.06,0.00022465,2]
[388700994,1759321860513,-721.24,0.00022465,2]
[388700995,1759321860521,-1030.61,0.00022465,2]
[388700996,1759321860532,-1694.29,0.00022465,2]
[388700997,1759321860541,-1091.43,0.00022465,2]
[388700998,1759321860550,-1144.06,0.00022465,2]
[388700999,1759321860559,-1335.93,0.00022465,2]
[388701000,1759321860568,-1839.37,0.00022465,2]
[388701001,1759321860577,-1459.47,0.00022465,2]
[388701002,1759321860587,-836.98,0.00022465,2]
[388701003,1759321860597,-2105.57,0.00022465,2]
[388701004,1759321860606,-638.95,0.00022465,2]
[388701005,1759321860615,-1315.4,0.00022465,2]
[388701006,1759321860624,-878.29,0.00022465,2]
[388701007,1759321860633,-1595.24,0.00022465,2]
[388701008,1759321860646,-1473.32,0.00022465,2]
[388701009,1759321860661,-1324.01,0.00022465,2]
[388701010,1759321860671,-1220.82,0.00022465,2]
[388701011,1759321860680,-912.25,0.00022465,2]
[388701012,1759321860689,-500.0,0.00022465,2]
[388701013,1759321860700,-247.96436813,0.00022465,2]
[388701014,1759321860710,-500.0,0.00022465,2]
[388701015,1759321860721,-999.89,0.00022465,2]
[388701016,1759321860731,-1163.38,0.00022465,2]
[388701017,1759321860741,-500.0,0.00022465,2]
[388701018,1759321860751,-500.0,0.00022465,2]
[388701019,1759321860760,-2709.32,0.00022465,2]
[388701020,1759321860769,-1580.81,0.00022465,2]
[388701021,1759321860778,-500.0,0.00022465,2]
[388701022,1759321860789,-577.98,0.00022465,2]
[388701023,1759321860798,-1438.98,0.00022465,2]
[388701024,1759321860807,-3424.63,0.00022465,2]
[388701025,1759321860817,-1244.25,0.00022465,2]
[388701026,1759321860827,-1550.16,0.00022465,2]
[388701027,1759321860840,-500.0,0.00022465,2]
[388701028,1759321860850,-862.91,0.00022465,2]
[388701029,1759321860859,-1140.21,0.00022465,2]
[388701030,1759321860868,-1371.74,0.00022465,2]
[388701031,1759321860879,-872.96,0.00022465,2]
[388701032,1759321860888,-4231.65,0.00022465,2]
[388701033,1759321860898,-645.5,0.00022465,2]
[388701034,1759321860907,-500.0,0.00022465,2]
[388701035,1759321860918,-1232.6,0.00022465,2]
[388701036,1759321860926,-1223.3,0.00022465,2]
[388701037,1759321860935,-590.09,0.00022465,2]
[388701038,1759321860944,-1447.95,0.00022465,2]
[388701039,1759321860954,-798.59,0.00022465,2]
[388701040,1759321860963,-500.0,0.00022465,2]
[388701041,1759321860972,-1782.85,0.00022465,2]
[388701042,1759321860982,-1838.64,0.00022465,2]
[388701043,1759321860995,-1516.56,0.00022465,2]
[388701044,1759321861004,-893.08,0.00022465,2]
[388701045,1759321861014,-630.1,0.00022465,2]
[388701046,1759321861023,-609.29,0.00022465,2]
[388701047,1759321861033,-2743.35,0.00022465,2]
[388701048,1759321861043,-1057.58,0.00022465,2]
[388701049,1759321861053,-2029.61,0.00022465,2]
[388701050,1759321861062,-1681.29,0.00022465,2]
[388701051,1759321861071,-1605.61,0.00022465,2]
[388701052,1759321861080,-500.0,0.00022465,2]
[388701053,1759321861090,-1745.65,0.00022465,2]
[388701054,1759321861099,-300.0,0.00022466,2]
[388701055,1759321861108,-253.0,0.00022479,2]
[388701056,1759321861117,-1018.38897898,0.000225,2]
[388701057,1759321861127,-160.0,0.000225,7]
[388701058,1759321861136,-243.0,0.00022539,2]
[388701059,1759321861144,-500.0,0.00022591,5]
[388701060,1759321861154,-150.0,0.000226,2]
[388701061,1759321861162,-2351.0,0.00022662,2]
[388701062,1759321861172,-587.0,0.00022662,2]
[388701063,1759321861182,-5000.0,0.00022664,2]
[388701064,1759321861191,-253.0,0.00022676,2]
[388701065,1759321861200,-243.0,0.00022707,2]
[388701066,1759321861209,-920.0,0.00022737,2]
[388701067,1759321861218,-1326.54,0.00022737,2]
[388701068,1759321861228,-575.41,0.00022739,2]
[388701069,1759321861239,-732.69,0.00022739,2]
[388701070,1759321861249,-502.46,0.00022739,2]
[388701071,1759321861259,-641.8583553,0.00022739,2]
[388701072,1759321861268,-500.0,0.00022739,2]
[388701073,1759321861277,-500.0,0.00022739,2]
[388701074,1759321861289,-540.44,0.00022739,2]
[388701075,1759321861299,-1093.76,0.00022739,2]
[388701076,1759321861307,-500.0,0.00022739,2]
[388701077,1759321861316,-653.65,0.00022739,2]
[388701078,1759321861326,-500.0,0.00022739,2]
[388701079,1759321861335,-500.0,0.00022739,2]
[388701080,1759321861344,-775.98,0.00022739,2]
[388701081,1759321861353,-500.0,0.00022739,2]
[388701082,1759321861362,-726.09,0.00022739,2]
[388701083,1759321861371,-580.53,0.00022739,2]
[388701084,1759321861381,-500.0,0.00022739,2]
[388701085,1759321861390,-769.46,0.00022739,2]
[388701086,1759321861403,-1943.96,0.00022739,2]
[388701087,1759321861413,-500.0,0.00022739,2]
[388701088,1759321861423,-612.02,0.00022739,2]
[388701089,1759321861433,-969.0,0.00022739,2]
[388701090,1759321861443,-763.2,0.00022739,2]
[388701091,1759321861453,-662.1,0.00022739,2]
[388701092,1759321861463,-500.0,0.00022739,2]
[388701093,1759321861472,-1161.75,0.00022739,2]
[388701094,1759321861482,-1820.64,0.00022739,2]
[388701095,1759321861493,-711.47,0.00022739,2]
[388701096,1759321861502,-1119.87,0.00022739,2]
[388701097,1759321861512,-695.1,0.00022739,2]
[388701098,1759321861522,-688.73,0.00022739,2]
[388701099,1759321861531,-557.33,0.00022739,2]
[388701100,1759321861545,-2140.28,0.00022739,2]
[388701101,1759321861555,-914.94,0.00022739,2]
[388701102,1759321861564,-716.76,0.00022739,2]
[388701103,1759321861577,-500.0,0.00022739,2]
[388701104,1759321861587,-500.0,0.00022739,2]
[388701105,1759321861597,-1047.55,0.00022739,2]
[388701106,1759321861606,-2079.09,0.00022739,2]
[388701107,1759321861616,-816.71,0.00022739,2]
[388701108,1759321861625,-1092.96,0.00022739,2]
[388701109,1759321861634,-758.83,0.00022739,2]
[388701110,1759321861643,-583.79,0.00022739,2]
[388701111,1759321861652,-636.07,0.00022739,2]
[388701112,1759321861662,-500.0,0.00022739,2]
[388701113,1759321861672,-500.0,0.00022739,2]
[388701114,1759321861681,-500.0,0.00022739,2]
[388701115,1759321861691,-2835.74,0.00022739,2]
[388701116,1759321861701,-597.08,0.00022739,2]
[388701117,1759321861712,-272.43849017,0.00022739,2]
[388701118,1759321861722,-604.04,0.00022739,2]
[388701119,1759321861732,-1919.86,0.00022739,2]
[388701120,1759321861742,-813.89,0.00022739,2]
[388701121,1759321861751,-520.36,0.00022739,2]
[388701122,1759321861761,-594.37,0.00022739,2]
[388701123,1759321861771,-2845.23,0.00022739,2]
[388701124,1759321861780,-735.28,0.00022739,2]
[388701125,1759321861792,-3053.05,0.00022739,2]
[388701126,1759321861801,-671.94,0.00022739,2]
[388701127,1759321861811,-1314.73,0.00022739,2]
[388701128,1759321861819,-666.86,0.00022739,2]
[388701129,1759321861829,-599.23,0.00022739,2]
[388701130,1759321861842,-2778.08,0.00022739,2]
[388701131,1759321861851,-705.59,0.00022739,2]
[388701132,1759321861860,-500.0,0.00022739,2]
[388701133,1759321861869,-741.42,0.00022739,2]
[388701134,1759321861880,-845.2,0.00022739,2]
[388701135,1759321861890,-1126.69,0.00022739,2]
[388701136,1759321861899,-3581.98,0.00022739,2]
[388701137,1759321861909,-1516.75,0.00022739,2]
[388701138,1759321861920,-733.07,0.00022739,2]
[388701139,1759321861929,-9167.63,0.00022739,2]
[388701140,1759321861938,-500.0,0.00022739,2]
[388701141,1759321861947,-541.2,0.00022739,2]
[388701142,1759321861956,-1344.06,0.00022739,2]
[388701143,1759321861966,-721.24,0.00022739,2]
[388701144,1759321861975,-1030.61,0.00022739,2]
[388701145,1759321861985,-1694.29,0.00022739,2]
[388701146,1759321861995,-1091.43,0.00022739,2]
[388701147,1759321862004,-1144.06,0.00022739,2]
[388701148,1759321862013,-1335.93,0.00022739,2]
[388701149,1759321862022,-1839.37,0.00022739,2]
[388701150,1759321862032,-1459.47,0.00022739,2]
[388701151,1759321862042,-836.98,0.00022739,2]
[388701152,1759321862051,-2105.57,0.00022739,2]
[388701153,1759321862060,-638.95,0.00022739,2]
[388701154,1759321862070,-1315.4,0.00022739,2]
[388701155,1759321862079,-878.29,0.00022739,2]
[388701156,1759321862088,-1595.24,0.00022739,2]
[388701157,1759321862097,-1473.32,0.00022739,2]
[388701158,1759321862107,-1324.01,0.00022739,2]
[388701159,1759321862116,-1220.82,0.00022739,2]
[388701160,1759321862125,-912.25,0.00022739,2]
[388701161,1759321862135,-500.0,0.00022739,2]
[388701162,1759321862144,-500.0,0.00022739,2]
[388701163,1759321862153,-999.89,0.00022739,2]
[388701164,1759321862163,-1163.38,0.00022739,2]
[388701165,1759321862172,-500.0,0.00022739,2]
[388701166,1759321862181,-500.0,0.00022739,2]
[388701167,1759321862191,-2709.32,0.00022739,2]
[388701168,1759321862199,-1580.81,0.00022739,2]
[388701169,1759321862209,-500.0,0.00022739,2]
[388701170,1759321862218,-577.98,0.00022739,2]
[388701171,1759321862227,-1438.98,0.00022739,2]
[388701172,1759321862238,-3424.63,0.00022739,2]
[388701173,1759321862247,-1244.25,0.00022739,2]
[388701174,1759321862256,-1550.16,0.00022739,2]
[388701175,1759321862266,-500.0,0.00022739,2]
[388701176,1759321862275,-862.91,0.00022739,2]
[388701177,1759321862284,-1140.21,0.00022739,2]
[388701178,1759321862294,-1371.74,0.00022739,2]
[388701179,1759321862303,-872.96,0.00022739,2]
[388701180,1759321862312,-4231.65,0.00022739,2]
[388701181,1759321862321,-645.5,0.00022739,2]
[388701182,1759321862330,-500.0,0.00022739,2]
[388701183,1759321862339,-1232.6,0.00022739,2]
[388701184,1759321862348,-1223.3,0.00022739,2]
[388701185,1759321862357,-590.09,0.00022739,2]
[388701186,1759321862366,-1447.95,0.00022739,2]
[388701187,1759321862375,-798.59,0.00022739,2]
[388701188,1759321862384,-500.0,0.00022739,2]
[388701189,1759321862393,-1782.85,0.00022739,2]
[388701190,1759321862402,-1838.64,0.00022739,2]
[388701191,1759321862412,-1516.56,0.00022739,2]
[388701192,1759321862422,-893.08,0.00022739,2]
[388701193,1759321862432,-630.1,0.00022739,2]
[388701194,1759321862443,-609.29,0.00022739,2]
[388701195,1759321862454,-2743.35,0.00022739,2]
[388701196,1759321862463,-1057.58,0.00022739,2]
[388701197,1759321862473,-2029.61,0.00022739,2]
[388701198,1759321862482,-1681.29,0.00022739,2]
[388701199,1759321862491,-1605.61,0.00022739,2]
[388701200,1759321862501,-500.0,0.00022739,2]
[388701201,1759321862510,-1745.65,0.00022739,2]
[388701202,1759321862520,-500.0,0.0002274,5]
[388701203,1759321862531,-4658.24996534,0.00022747,2]
[388701204,1759321862542,-1229.12636251,0.0002276,2]
[388701205,1759321862552,-3500.0,0.0002276,2]
[388701206,1759321862562,-3500.0,0.0002276,2]
[388701207,1759321862571,-500.0,0.00022865,5]
[388701208,1759321862581,-2351.0,0.00022882,2]
[388701209,1759321862590,-2880.4,0.00022888,2]
[388701210,1759321862599,-151.942474,0.00022904,3]
[388701211,1759321862609,-560.0,0.00022919,2]
[388701212,1759321862618,-253.0,0.00022936,2]
[388701213,1759321862627,-154.0,0.00023,2]
[388701214,1759321862636,-5313.01731013,0.00023,2]
[388701215,1759321862749,-160.0,0.00023,3]
[388701216,1759321862759,-233.9640895,0.00023,3]
[388701217,1759321862768,-180.0,0.00023,7]
[388701218,1759321862777,-160.0,0.00023,2]
[388701219,1759321862787,-288.0,0.00023,7]
[388701220,1759321862797,-4000.0,0.00023008,2]
[388701221,1759321862806,-4000.0,0.00023008,2]
[388701222,1759321862815,-2515.04645431,0.00023008,2]